Workbook

Sheet Лист1
A1: Школа | C1: МБОУ "Школа №68" Приволжского района г.Казани | G1: Утвердил: | H1: должность
A2: Форма ежедневного меню приготавливаемых блюд | H2: фамилия
A3: Возрастная категория | F3: 7-11 лет | H3: дата | J3: Сентябрь | K3: 2025
I4: день | J4: месяц | K4: год
A5: Неделя | B5: День недели | C5: Прием пищи | D5: Раздел меню | E5: № рецептуры | F5: Блюда | G5: Вес блюда, г | H5: Цена | I5: Калорийность | J5: Белки | K5: Жиры | L5: Углеводы
A6: 1 | B6: 1 | C6: Завтрак | D6: гор.блюдо | E6: ТТК 2020 г | F6: Тефтели куриные "Лакомка" в соусе для запекания | G6: 90 | I6: 174 | J6: 9.768 | K6: 12.911 | L6: 5.217
D7: гор.блюдо | E7: №302/2015г,Дели | F7: Каша гречневая рассыпчатая | G7: 150 | I7: 242 | J7: 6.622 | K7: 5.399 | L7: 41.875
D8: гор.напиток | E8: ТТК от 2021г | F8: Чай с сахаром | G8: 208 | I8: 32 | J8: 0.021 | K8: 0.005 | L8: 7.989
D9: хлеб | F9: Хлеб ржано-пшеничный/ Хлеб пшеничный | G9: 40 | I9: 91 | J9: 2.520 | K9: 0.360 | L9: 18.840
D10: фрукты | E10: №338 Дели 2015г | F10: Плоды и ягоды свежие (яблоки) | G10: 100 | I10: 47 | J10: 0.400 | K10: 0.400 | L10: 9.800
D11: закуска | E11: №71/2015 г Дели | F11: Овощи натуральные свежие (помидоры) | G11: 60 | I11: 14 | J11: 0.660 | K11: 0.120 | L11: 2.280
D12: конд. изд. | E12: ТТК от 2025г | F12: Оладьи 1 шт/ | G12: 30 | I12: 16 | J12: 0.180 | K12: 1.119 | L12: 1.200
D13: итого | G13: =SUM(G6:G12) -> 678 | H13: 89.77 | I13: =SUM(I5:I12) -> 616 | J13: =SUM(J5:J12) -> 20.171 | K13: =SUM(K5:K12) -> 20.314 | L13: =SUM(L5:L12) -> 87.201
A14: =A6 -> 1 | B14: =B6 -> 1 | C14: Обед | D14: закуска
D15: 1 блюдо
D16: 2 блюдо
D17: гарнир
D18: напиток
D19: хлеб бел.
D20: хлеб черн.
D23: итого | G23: =SUM(G14:G22) -> 0 | H23: =SUM(H14:H22) -> 0 | I23: =SUM(I14:I22) -> 0 | J23: =SUM(J14:J22) -> 0 | K23: 0 | L23: 0
A24: =A6 -> 1 | B24: =B6 -> 1 | C24: Итого за день: | G24: =G13+G23 -> 678 | H24: 89.77 | I24: 616 | J24: 20.171 | K24: 20.314 | L24: 87.201
A25: 1 | B25: 2 | C25: Завтрак | D25: гор.блюдо | E25: Акт 2019 год | F25: Запеканка картофельная с куриными грудками | G25: 180 | I25: 269 | J25: 14.474 | K25: 11.326 | L25: 27.253
D27: гор.напиток | E27: ТТК от 2021г | F27: Чай без сахара | G27: 200 | I27: 0 | J27: 0.021 | K27: 0.005 | L27: 0.005
D28: хлеб | F28: Хлеб ржано-пшеничный/ Хлеб пшеничный | G28: 40 | I28: 91 | J28: 2.520 | K28: 0.360 | L28: 18.840
D30: закуска | E30: №71/2015 Дели | F30: Овощи натуральные свежие (огурцы) | G30: 60 | I30: 7 | J30: 0.420 | K30: 0.060 | L30: 1.140
D31: конд. изд. | E31: ТТК 2018 | F31: Печенье сдобное Американер с кунжутом | G31: 30 | I31: 162 | J31: 2.493 | K31: 8.628 | L31: 18.541
D32: итого | G32: =SUM(G25:G31) -> 510 | H32: 89.77 | I32: =SUM(I25:I31) -> 529 | J32: =SUM(J25:J31) -> 19.928 | K32: =SUM(K25:K31) -> 20.379 | L32: =SUM(L25:L31) -> 65.779
A33: =A25 -> 1 | B33: =B25 -> 2 | C33: Обед | D33: закуска
D34: 1 блюдо
D35: 2 блюдо
D36: гарнир
D37: напиток
D38: хлеб бел.
D39: хлеб черн.
D42: итого | G42: =SUM(G33:G41) -> 0 | H42: =SUM(H33:H41) -> 0 | I42: =SUM(I33:I41) -> 0 | J42: =SUM(J33:J41) -> 0 | K42: 0 | L42: 0
A43: =A25 -> 1 | B43: =B25 -> 2 | C43: Итого за день: | G43: =G32+G42 -> 510 | H43: =H32+H42 -> 89.77 | I43: =I32+I42 -> 529 | J43: =J32+J42 -> 19.928 | K43: 20.379 | L43: 65.779
A44: 1 | B44: 3 | C44: Завтрак | D44: гор.блюдо | E44: №243/2015 Дели | F44: Сосиски отварные с соусом для запекания | G44: 90 | I44: 103 | J44: 6.916 | K44: 7.543 | L44: 1.758
D45: гор.блюдо | E45: №309/2015г Дели | F45: Макаронные изделия отварные | G45: 150 | I45: 174 | J45: 5.602 | K45: 3.868 | L45: 29.306
D46: гор.напиток | E46: ТТК №2693 от 14.09.2023 г | F46: Напиток из урюка | G46: 200 | I46: 42 | J46: 0.8 | K46: 0.064 | L46: 9.460
D47: хлеб | F47: Хлеб ржано-пшеничный/ Хлеб пшеничный | G47: 40 | I47: 91 | J47: 2.520 | K47: 0.360 | L47: 18.840
D48: фрукты | E48: №338 Дели 2015г | F48: Плоды и ягоды свежие (яблоки) | G48: 100 | I48: 47 | J48: 0.400 | K48: 0.400 | L48: 9.800
D49: закуска | E49: ТТК | F49: Салат из моркови | G49: 60 | I49: 58 | J49: 0.702 | K49: 3.051 | L49: 6.720
D50: конд. изд. | E50: ТТК от 19.06.2025 г | F50: Маффин классический | G50: 30 | I50: 101 | J50: 2.168 | K50: 4.341 | L50: 11.864
D51: итого | G51: =SUM(G44:G50) -> 670 | H51: 89.77 | I51: =SUM(I44:I50) -> 616 | J51: =SUM(J44:J50) -> 19.108 | K51: =SUM(K44:K50) -> 19.627 | L51: =SUM(L44:L50) -> 87.748
A52: =A44 -> 1 | B52: =B44 -> 3 | C52: Обед | D52: закуска
D53: 1 блюдо
D54: 2 блюдо
D55: гарнир
D56: напиток
D57: хлеб бел.
D58: хлеб черн.
D61: итого | G61: =SUM(G52:G60) -> 0 | H61: =SUM(H52:H60) -> 0 | I61: =SUM(I52:I60) -> 0 | J61: =SUM(J52:J60) -> 0 | K61: 0 | L61: 0
A62: =A44 -> 1 | B62: =B44 -> 3 | C62: Итого за день: | G62: =G51+G61 -> 670 | H62: =H51+H61 -> 89.77 | I62: =I51+I61 -> 616 | J62: =J51+J61 -> 19.108 | K62: 19.627 | L62: 87.748
A63: 1 | B63: 4 | C63: Завтрак | D63: гор.блюдо | E63: ТТК 2021г | F63: Плов с говядиной | G63: 190 | I63: 324 | J63: 13.404 | K63: 14.443 | L63: 35.065
D65: гор.напиток | E65: ТТК от 2021г | F65: Чай с сахаром | G65: 208 | I65: 32 | J65: 0.021 | K65: 0.005 | L65: 7.989
D66: хлеб | F66: Хлеб ржано-пшеничный/ Хлеб пшеничный | G66: 40 | I66: 91 | J66: 2.520 | K66: 0.360 | L66: 18.840
D68: закуска | E68: №45/2015г,Дели | F68: Салат из белокочанной капусты | G68: 60 | I68: 54 | J68: 0.931 | K68: 3.051 | L68: 5.645
D69: конд. изд. | E69: ТТК(Акт19.09.2018г) | F69: Блинчики со сгущенным молоком 1 шт/ | G69: 55 | I69: 114 | J69: 3.195 | K69: 2.524 | L69: 19.500
D70: итого | G70: =SUM(G63:G69) -> 553 | H70: 89.77 | I70: =SUM(I63:I69) -> 615 | J70: =SUM(J63:J69) -> 20.071 | K70: =SUM(K63:K69) -> 20.383 | L70: =SUM(L63:L69) -> 87.039
A71: =A63 -> 1 | B71: =B63 -> 4 | C71: Обед | D71: закуска
D72: 1 блюдо
D73: 2 блюдо
D74: гарнир
D75: напиток
D76: хлеб бел.
D77: хлеб черн.
D80: итого | G80: =SUM(G71:G79) -> 0 | H80: =SUM(H71:H79) -> 0 | I80: =SUM(I71:I79) -> 0 | J80: =SUM(J71:J79) -> 0 | K80: 0 | L80: 0
A81: =A63 -> 1 | B81: =B63 -> 4 | C81: Итого за день: | G81: =G70+G80 -> 553 | H81: =H70+H80 -> 89.77 | I81: =I70+I80 -> 615 | J81: =J70+J80 -> 20.071 | K81: 20.383 | L81: 87.039
A82: 1 | B82: 5 | C82: Завтрак | D82: гор.блюдо | E82: ТТК июль 2021г | F82: Фрикассе из куриных грудок | G82: 90 | I82: 113 | J82: 8.026 | K82: 8.476 | L82: 1.236
D83: гор.блюдо | E83: №309/2015г Дели | F83: Макаронные изделия отварные | G83: 150 | I83: 174 | J83: 5.602 | K83: 3.868 | L83: 29.306
D84: гор.напиток | E84: ТТК №2694 от 14.09.2023г | F84: Напиток из вишни | G84: 200 | I84: 48 | J84: 0.120 | K84: 0.030 | L84: 11.570
D85: хлеб | F85: Хлеб ржано-пшеничный/ Хлеб пшеничный | G85: 40 | I85: 91 | J85: 2.520 | K85: 0.360 | L85: 18.840
D86: фрукты | F86: Фруктовое пюре | G86: 125 | I86: 60 | J86: 0.000 | K86: 0.000 | L86: 15.000
D87: закуска | E87: №52/2015г,Дели | F87: Салат из свеклы отварной (с маслом) | G87: 60 | I87: 56 | J87: 0.855 | K87: 3.653 | L87: 5.016
D89: итого | G89: =SUM(G82:G88) -> 665 | H89: 89.77 | I89: =SUM(I82:I88) -> 542 | J89: =SUM(J82:J88) -> 17.123 | K89: 16.387 | L89: 80.968
A90: =A82 -> 1 | B90: =B82 -> 5 | C90: Обед | D90: закуска
D91: 1 блюдо
D92: 2 блюдо
D93: гарнир
D94: напиток
D95: хлеб бел.
D96: хлеб черн.
D99: итого | G99: =SUM(G90:G98) -> 0 | H99: =SUM(H90:H98) -> 0 | I99: =SUM(I90:I98) -> 0 | J99: =SUM(J90:J98) -> 0 | K99: 0 | L99: 0
A100: =A82 -> 1 | B100: =B82 -> 5 | C100: Итого за день: | G100: =G89+G99 -> 665 | H100: =H89+H99 -> 89.77 | I100: =I89+I99 -> 542 | J100: =J89+J99 -> 17.123 | K100: 16.387 | L100: 80.968
A101: 1 | B101: 6 | C101: Завтрак | D101: гор.блюдо | E101: ТТК 2015г | F101: Пельмени "Для умников и умниц" отварные с соус. Для запекания с овощами натуральными свежими (огурцы) | G101: 210 | I101: 349 | J101: 15.754 | K101: 14.116 | L101: 39.887
D103: гор.напиток | E103: ТТК от 2021г | F103: Чай без сахара | G103: 200 | I103: 0 | J103: 0.021 | K103: 0.005 | L103: 0.005
D104: хлеб | F104: Хлеб ржано-пшеничный/ Хлеб пшеничный | G104: 40 | I104: 91 | J104: 2.520 | K104: 0.360 | L104: 18.840
D105: фрукты | E105: №338 Дели 2015г | F105: Плоды и ягоды свежие (яблоки) | G105: 100 | I105: 47 | J105: 0.400 | K105: 0.400 | L105: 9.800
D107: конд. изд. | F107: Батончики "Финики-кокос-кунжут" | G107: 16.5 | I107: 70 | J107: 1.000 | K107: 3.400 | L107: 8.500
D108: итого | G108: =SUM(G101:G107) -> 566.5 | H108: 89.77 | I108: =SUM(I101:I107) -> 557 | J108: =SUM(J101:J107) -> 19.695 | K108: =SUM(K101:K107) -> 18.281 | L108: =SUM(L101:L107) -> 77.032
A109: =A101 -> 1 | B109: 6 | C109: Обед | D109: закуска
D110: 1 блюдо
D111: 2 блюдо
D112: гарнир
D113: напиток
D114: хлеб бел.
D115: хлеб черн.
D118: итого | G118: =SUM(G109:G117) -> 0 | H118: =SUM(H109:H117) -> 0 | I118: =SUM(I109:I117) -> 0 | J118: =SUM(J109:J117) -> 0 | K118: 0 | L118: 0
A119: =A101 -> 1 | B119: =B101 -> 6 | C119: Итого за день: | G119: =G108+G118 -> 566.5 | H119: =H108+H118 -> 89.77 | I119: =I108+I118 -> 557 | J119: =J108+J118 -> 19.695 | K119: 18.281 | L119: 77.032
A120: 2 | B120: 1 | C120: Завтрак | D120: гор.блюдо | E120: ТТК от 2020г | F120: Тефтели куриные "Лакомка" в соусе для запекания и с овощными палочками из огурцов | G120: 120 | I120: 177 | J120: 9.978 | K120: 12.941 | L120: 5.787
D121: гор.блюдо | E121: ТТК 2014 г | F121: Каша гречневая вязкая | G121: 150 | I121: 144 | J121: 3.500 | K121: 4.643 | L121: 22.028
D122: гор.напиток | E122: ТТК от 2021г | F122: Компот из замороженной компотной смеси | G122: 200 | I122: 46 | J122: 0.135 | K122: 0.023 | L122: 11.150
D123: хлеб | F123: Хлеб ржано-пшеничный/ Хлеб пшеничный | G123: 40 | I123: 91 | J123: 2.520 | K123: 0.360 | L123: 18.840
D124: фрукты | E124: №338 Дели 2015г | F124: Плоды и ягоды свежие (яблоки) | G124: 100 | I124: 47 | J124: 0.400 | K124: 0.400 | L124: 9.800
D127: итого | G127: =SUM(G120:G126) -> 610 | H127: 89.77 | I127: =SUM(I120:I126) -> 505 | J127: =SUM(J120:J126) -> 16.533 | K127: =SUM(K120:K126) -> 18.367 | L127: =SUM(L120:L126) -> 67.605
A128: =A120 -> 2 | B128: =B120 -> 1 | C128: Обед | D128: закуска
D129: 1 блюдо
D130: 2 блюдо
D131: гарнир
D132: напиток
D133: хлеб бел.
D134: хлеб черн.
D137: итого | G137: =SUM(G128:G136) -> 0 | H137: =SUM(H128:H136) -> 0 | I137: =SUM(I128:I136) -> 0 | J137: =SUM(J128:J136) -> 0 | K137: 0 | L137: 0
A138: =A120 -> 2 | B138: =B120 -> 1 | C138: Итого за день: | G138: =G127+G137 -> 610 | H138: =H127+H137 -> 89.77 | I138: =I127+I137 -> 505 | J138: =J127+J137 -> 16.533 | K138: 18.367 | L138: 67.605
A139: 2 | B139: 2 | C139: Завтрак | D139: гор.блюдо | E139: ТТК 2023г | F139: Жаркое из птицы (грудки куриные) | G139: 190 | I139: 316 | J139: 14.363 | K139: 15.717 | L139: 29.286
D141: гор.напиток | E141: ТТК от 2021г | F141: Чай с сахаром | G141: 208 | I141: 32 | J141: 0.021 | K141: 0.005 | L141: 7.989
D142: хлеб | F142: Хлеб ржано-пшеничный/ Хлеб пшеничный | G142: 40 | I142: 91 | J142: 2.520 | K142: 0.360 | L142: 18.840
D143: фрукты | E143: №338 Дели 2015г | F143: Плоды и ягоды свежие (яблоки) | G143: 100 | I143: 47 | J143: 0.400 | K143: 0.400 | L143: 9.800
D144: закуска | E144: №71/2015 г Дели | F144: Овощи натуральные свежие (помидоры) | G144: 60 | I144: 14 | J144: 0.660 | K144: 0.120 | L144: 2.280
D146: итого | G146: =SUM(G139:G145) -> 598 | H146: 89.77 | I146: =SUM(I139:I145) -> 500 | J146: =SUM(J139:J145) -> 17.964 | K146: 16.602 | L146: 68.195
A147: =A139 -> 2 | B147: =B139 -> 2 | C147: Обед | D147: закуска
D148: 1 блюдо
D149: 2 блюдо
D150: гарнир
D151: напиток
D152: хлеб бел.
D153: хлеб черн.
D156: итого | G156: =SUM(G147:G155) -> 0 | H156: =SUM(H147:H155) -> 0 | I156: =SUM(I147:I155) -> 0 | J156: =SUM(J147:J155) -> 0 | K156: 0 | L156: 0
A157: =A139 -> 2 | B157: =B139 -> 2 | C157: Итого за день: | G157: =G146+G156 -> 598 | H157: =H146+H156 -> 89.77 | I157: =I146+I156 -> 500 | J157: =J146+J156 -> 17.964 | K157: 16.602 | L157: 68.195
A158: 2 | B158: 3 | C158: Завтрак | D158: гор.блюдо | E158: ТТК 2015г | F158: Пельмени "Для умников и умниц" отварные с маслом | G158: 185 | I158: 337 | J158: 15.935 | K158: 13.359 | L158: 38.197
D160: гор.напиток | E160: ТТК от 2021г | F160: Напиток из шиповника | G160: 200 | I160: 41 | J160: 0.012 | K160: 0.001 | L160: 10.178
D161: хлеб | F161: Хлеб ржано-пшеничный/ Хлеб пшеничный | G161: 40 | I161: 91 | J161: 2.520 | K161: 0.360 | L161: 18.840
D163: закуска | E163: ТТК | F163: Салат из моркови | G163: 60 | I163: 58 | J163: 0.702 | K163: 3.051 | L163: 6.720
D164: конд. изд. | F164: Батончики "Финики-кокос-кунжут" | G164: 16.5 | I164: 70 | J164: 1.000 | K164: 3.400 | L164: 8.500
D165: итого | G165: =SUM(G158:G164) -> 501.5 | H165: 89.77 | I165: =SUM(I158:I164) -> 597 | J165: =SUM(J158:J164) -> 20.169 | K165: =SUM(K158:K164) -> 20.171 | L165: 82.435
A166: =A158 -> 2 | B166: =B158 -> 3 | C166: Обед | D166: закуска
D167: 1 блюдо
D168: 2 блюдо
D169: гарнир
D170: напиток
D171: хлеб бел.
D172: хлеб черн.
D175: итого | G175: =SUM(G166:G174) -> 0 | H175: =SUM(H166:H174) -> 0 | I175: =SUM(I166:I174) -> 0 | J175: =SUM(J166:J174) -> 0 | K175: 0 | L175: 0
A176: =A158 -> 2 | B176: =B158 -> 3 | C176: Итого за день: | G176: =G165+G175 -> 501.5 | H176: =H165+H175 -> 89.77 | I176: =I165+I175 -> 597 | J176: =J165+J175 -> 20.169 | K176: 20.171 | L176: 82.435
A177: 2 | B177: 4 | C177: Завтрак | D177: гор.блюдо | E177: ТТК июль 2021г | F177: Фрикассе из куриных грудок | G177: 90 | I177: 113 | J177: 8.026 | K177: 8.476 | L177: 1.236
D178: гор.блюдо | E178: №309/2015г Дели | F178: Макаронные изделия отварные | G178: 150 | I178: 174 | J178: 5.602 | K178: 3.868 | L178: 29.306
D179: гор.напиток | E179: ТТК от 2021г | F179: Компот из замороженной компотной смеси | G179: 200 | I179: 46 | J179: 0.135 | K179: 0.023 | L179: 11.150
D180: хлеб | F180: Хлеб ржано-пшеничный/ Хлеб пшеничный | G180: 40 | I180: 91 | J180: 2.520 | K180: 0.360 | L180: 18.840
D182: закуска | E182: №52/2015г,Дели | F182: Салат из свеклы отварной (с маслом) | G182: 60 | I182: 56 | J182: 0.855 | K182: 3.653 | L182: 5.016
D183: конд. изд. | F183: Маффин классический | G183: 30 | I183: 101 | J183: 2.168 | K183: 4.341 | L183: 11.864
D184: итого | G184: =SUM(G177:G183) -> 570 | H184: 89.77 | I184: =SUM(I177:I183) -> 581 | J184: =SUM(J177:J183) -> 19.306 | K184: =SUM(K177:K183) -> 20.721 | L184: =SUM(L177:L183) -> 77.412
A185: =A177 -> 2 | B185: =B177 -> 4 | C185: Обед | D185: закуска
D186: 1 блюдо
D187: 2 блюдо
D188: гарнир
D189: напиток
D190: хлеб бел.
D191: хлеб черн.
D194: итого | G194: =SUM(G185:G193) -> 0 | H194: =SUM(H185:H193) -> 0 | I194: =SUM(I185:I193) -> 0 | J194: =SUM(J185:J193) -> 0 | K194: =SUM(K185:K193) -> 0 | L194: 0
A195: =A177 -> 2 | B195: =B177 -> 4 | C195: Итого за день: | G195: =G184+G194 -> 570 | H195: =H184+H194 -> 89.77 | I195: =I184+I194 -> 581 | J195: =J184+J194 -> 19.306 | K195: 20.721 | L195: 77.412
A196: 2 | B196: 5 | C196: Завтрак | D196: гор.блюдо | E196: ТТК от 2024г | F196: Гуляш из куриных грудок с овощами натуральными свежими (огурцами) | G196: 120 | I196: 102 | J196: 11.375 | K196: 3.829 | L196: 5.528
D197: гор.блюдо | E197: ТТК | F197: Картофель запечённый (из сырого) | G197: 150 | I197: 202 | J197: 3.507 | K197: 8.224 | L197: 28.402
D198: гор.напиток | E198: ТТК от 2021г | F198: Чай без сахара | G198: 200 | I198: 0 | J198: 0.021 | K198: 0.005 | L198: 0.005
D199: хлеб | F199: Хлеб ржано-пшеничный/ Хлеб пшеничный | G199: 40 | I199: 91 | J199: 2.520 | K199: 0.360 | L199: 18.840
D202: конд. изд. | F202: Печенье сдобное вкусное | G202: 30 | I202: 158 | J202: 2.216 | K202: 8.233 | L202: 18.848
D203: итого | G203: =SUM(G196:G202) -> 540 | H203: 89.77 | I203: =SUM(I196:I202) -> 553 | J203: =SUM(J196:J202) -> 19.639 | K203: =SUM(K196:K202) -> 20.651 | L203: 71.623
A204: =A196 -> 2 | B204: =B196 -> 5 | C204: Обед | D204: закуска
D205: 1 блюдо
D206: 2 блюдо
D207: гарнир
D208: напиток
D209: хлеб бел.
D210: хлеб черн.
D213: итого | G213: =SUM(G204:G212) -> 0 | H213: =SUM(H204:H212) -> 0 | I213: =SUM(I204:I212) -> 0 | J213: =SUM(J204:J212) -> 0 | K213: 0 | L213: 0
A214: =A196 -> 2 | B214: =B196 -> 5 | C214: Итого за день: | G214: =G203+G213 -> 540 | H214: =H203+H213 -> 89.77 | I214: =I203+I213 -> 553 | J214: =J203+J213 -> 19.639 | K214: 20.651 | L214: 71.623
A215: 2 | B215: 6 | C215: Завтрак | D215: гор.блюдо | E215: №243/2015 Дели | F215: Сосиски отварные с соусом для запекания | G215: 90 | I215: 103 | J215: 6.916 | K215: 7.543 | L215: 1.758
D216: гор.блюдо | E216: №304/2015г,Дели | F216: Рис отварной | G216: 150 | I216: 224 | J216: 3.834 | K216: 5.434 | L216: 40.014
D217: гор.напиток | E217: ТТК №2693 от 14.09.2023г | F217: Напиток из урюка | G217: 200 | I217: 42 | J217: 0.800 | K217: 0.064 | L217: 9.460
D218: хлеб | F218: Хлеб ржано-пшеничный/ Хлеб пшеничный | G218: 40 | I218: 91 | J218: 2.520 | K218: 0.360 | L218: 18.840
D220: закуска | E220: №71/2015 г Дели | F220: Овощи натуральные свежие (помидоры) | G220: 60 | I220: 14 | J220: 0.660 | K220: 0.120 | L220: 2.280
D221: конд. изд. | F221: Оладьи со сгущеным молоком 1 шт/ | G221: 35 | I221: 32 | J221: 0.540 | K221: 1.544 | L221: 3.975
D222: итого | G222: =SUM(G215:G221) -> 575 | H222: 89.77 | I222: =SUM(I215:I221) -> 506 | J222: =SUM(J215:J221) -> 15.270 | K222: =SUM(K215:K221) -> 15.065 | L222: =SUM(L215:L221) -> 76.327
A223: =A215 -> 2 | B223: 6 | C223: Обед | D223: закуска
D224: 1 блюдо
D225: 2 блюдо
D226: гарнир
D227: напиток
D228: хлеб бел.
D229: хлеб черн.
D232: итого | G232: =SUM(G223:G231) -> 0 | H232: =SUM(H223:H231) -> 0 | I232: =SUM(I223:I231) -> 0 | J232: =SUM(J223:J231) -> 0 | K232: 0 | L232: 0
A233: =A215 -> 2 | B233: =B215 -> 6 | C233: Итого за день: | G233: =G222+G232 -> 575 | H233: =H222+H232 -> 89.77 | I233: =I222+I232 -> 506 | J233: =J222+J232 -> 15.27 | K233: 15.065 | L233: 76.327
F234: Среднее значение за период: | G234: =(G233+G214+G195+G176+G157+G138+G119+G100+G81+G62+G43+G24)/12 -> 586 | H234: 89.77 | I234: =(I233+I214+I195+I176+I157+I138+I119+I100+I81+I62+I43+I24)/12 -> 560 | J234: =(J233+J214+J195+J176+J157+J138+J119+J100+J81+J62+J43+J24)/12 -> 18.748 | K234: =(K233+K214+K195+K176+K157+K138+K119+K100+K81+K62+K43+K24)/12 -> 18.912 | L234: =(L233+L214+L195+L176+L157+L138+L119+L100+L81+L62+L43+L24)/12 -> 77.447
